Workbook

Sheet Given Historic Growth
H1: Probelm: Neet to find the growth rate and the base retirmement
B2: Life | C2: 12 | E2: Final | F2: =C29 -> -5.27506927e-11
B3: Base Value | C3: 0.03133549582
B4: Historic Growth | C4: 0.15 | J4: '
J5: Sub goalseek()
B6: Plant in Service | C6: ='[1]Financial Model'!M25 -> 112364.323 | J6: Range("final_net_plant").goalseek Goal:=0, ChangingCell:=Range("base_value")
B7: Accum Depreciation | C7: =-'[1]Financial Model'!M26 -> 23007.382 | J7: End Sub
B9: Find Initial
D11: 1 | E11: =D11+1 -> 2 | F11: =E11+1 -> 3 | G11: 4 | H11: 5 | I11: 6 | J11: 7 | K11: 8 | L11: 9 | M11: 10 | N11: 11 | O11: 12 | P11: 13 | Q11: 14 | R11: 15 | S11: 16 | T11: 17
B12: Switch | C12: =C2 -> 12 | D12: =D11<=$C$12 -> TRUE | E12: =E11<=$C$12 -> TRUE | F12: TRUE | G12: TRUE | H12: TRUE | I12: TRUE | J12: TRUE | K12: TRUE | L12: TRUE | M12: TRUE | N12: TRUE | O12: TRUE | P12: FALSE | Q12: FALSE | R12: FALSE | S12: FALSE | T12: FALSE
B13: Final Year | D13: =D11=$C$2 -> FALSE | E13: =E11=$C$2 -> FALSE | F13: FALSE | G13: FALSE | H13: FALSE | I13: FALSE | J13: FALSE | K13: FALSE | L13: FALSE | M13: FALSE | N13: FALSE | O13: TRUE | P13: FALSE | Q13: FALSE | R13: FALSE | S13: FALSE | T13: FALSE
B15: Retirement Rate | D15: =C3 -> 0.03133549582 | E15: =D15*(1+$C$4)*E12 -> 0.0360358202 | F15: =E15*(1+$C$4)*F12 -> 0.04144119323 | G15: 0.04765737221 | H15: 0.05480597804 | I15: 0.06302687475 | J15: 0.07248090596 | K15: 0.08335304186 | L15: 0.09585599814 | M15: 0.1102343979 | N15: 0.1267695575 | O15: 0.1457849912 | P15: 0 | Q15: 0 | R15: 0 | S15: 0 | T15: 0
B17: Opening Balance | D17: =C19 -> 112364.323 | E17: =D19 -> 108843.3312 | F17: 104794.1907 | G17: 100137.6791 | H17: 94782.6907 | I17: 88624.45408 | J17: 81542.48197 | K17: 73398.21404 | L17: 64032.30592 | M17: 53261.51159 | N17: 40875.0981 | O17: 26630.72259 | P17: 10249.69075 | Q17: 10249.69075 | R17: 10249.69075 | S17: 10249.69075 | T17: 10249.69075
B18: Less: Retirement | D18: =D15*$C$6 -> 3520.991774 | E18: =E15*$C$6 -> 4049.14054 | F18: 4656.511621 | G18: 5354.988365 | H18: 6158.236619 | I18: 7081.972112 | J18: 8144.267929 | K18: 9365.908118 | L18: 10770.79434 | M18: 12386.41349 | N18: 14244.37551 | O18: 16381.03184 | P18: 0 | Q18: 0 | R18: 0 | S18: 0 | T18: 0
B19: Closing Balance | C19: =C6 -> 112364.323 | D19: =D17-D18 -> 108843.3312 | E19: =E17-E18 -> 104794.1907 | F19: 100137.6791 | G19: 94782.6907 | H19: 88624.45408 | I19: 81542.48197 | J19: 73398.21404 | K19: 64032.30592 | L19: 53261.51159 | M19: 40875.0981 | N19: 26630.72259 | O19: 10249.69075 | P19: 10249.69075 | Q19: 10249.69075 | R19: 10249.69075 | S19: 10249.69075 | T19: 10249.69075
B21: Depreciation | C21: =1/C2 -> 0.08333333333 | D21: =$C$21*D17*D12 -> 9363.693583 | E21: =$C$21*E17*E12 -> 9070.277602 | F21: 8732.849224 | G21: 8344.806589 | H21: 7898.557558 | I21: 7385.371173 | J21: 6795.206831 | K21: 6116.517837 | L21: 5336.025493 | M21: 4438.459299 | N21: 3406.258175 | O21: 2219.226882 | P21: 0 | Q21: 0 | R21: 0 | S21: 0 | T21: 0
B23: Accumulated Depreciation
B24: Opening Balance | D24: =C27 -> 23007.382 | E24: =D27 -> 28850.08381 | F24: 33871.22087 | G24: 37947.55847 | H24: 40937.3767 | I24: 42677.69764 | J24: 42981.0967 | K24: 41632.0356 | L24: 38382.64532 | M24: 32947.87648 | N24: 24999.92229 | O24: 14161.80495 | P24: -5.27506927e-11 | Q24: -5.27506927e-11 | R24: -5.27506927e-11 | S24: -5.27506927e-11 | T24: -5.27506927e-11
B25: Add: Depreciation | D25: =D21 -> 9363.693583 | E25: =E21 -> 9070.277602 | F25: 8732.849224 | G25: 8344.806589 | H25: 7898.557558 | I25: 7385.371173 | J25: 6795.206831 | K25: 6116.517837 | L25: 5336.025493 | M25: 4438.459299 | N25: 3406.258175 | O25: 2219.226882 | P25: 0 | Q25: 0 | R25: 0 | S25: 0 | T25: 0
B26: Less: Retirement | D26: =D18 -> 3520.991774 | E26: =E18 -> 4049.14054 | F26: 4656.511621 | G26: 5354.988365 | H26: 6158.236619 | I26: 7081.972112 | J26: 8144.267929 | K26: 9365.908118 | L26: 10770.79434 | M26: 12386.41349 | N26: 14244.37551 | O26: 16381.03184 | P26: 0 | Q26: 0 | R26: 0 | S26: 0 | T26: 0
B27: Closing Balance | C27: =C7 -> 23007.382 | D27: =D24+D25-D26 -> 28850.08381 | E27: =E24+E25-E26 -> 33871.22087 | F27: 37947.55847 | G27: 40937.3767 | H27: 42677.69764 | I27: 42981.0967 | J27: 41632.0356 | K27: 38382.64532 | L27: 32947.87648 | M27: 24999.92229 | N27: 14161.80495 | O27: -5.27506927e-11 | P27: -5.27506927e-11 | Q27: -5.27506927e-11 | R27: -5.27506927e-11 | S27: -5.27506927e-11 | T27: -5.27506927e-11
B29: End Value | C29: =SUM(D29:T29) -> -5.27506927e-11 | D29: =D27*D13 -> 0 | E29: =E27*E13 -> 0 | F29: 0 | G29: 0 | H29: 0 | I29: 0 | J29: 0 | K29: 0 | L29: 0 | M29: 0 | N29: 0 | O29: -5.27506927e-11 | P29: 0 | Q29: 0 | R29: 0 | S29: 0 | T29: 0
B32: Net Plant | D32: =D17-D24 -> 89356.941 | E32: =E17-E24 -> 79993.24742 | F32: 70922.96981 | G32: 62190.12059 | H32: 53845.314 | I32: 45946.75644 | J32: 38561.38527 | K32: 31766.17844 | L32: 25649.6606 | M32: 20313.63511 | N32: 15875.17581 | O32: 12468.91764 | P32: 10249.69075 | Q32: 10249.69075 | R32: 10249.69075 | S32: 10249.69075 | T32: 10249.69075
B33: Net Plant Depreciation Rate | D33: =D21/D32 -> 0.1047897732 | E33: =E21/E32 -> 0.1133880408 | F33: 0.1231314657 | G33: 0.1341821902 | H33: 0.1466897854 | I33: 0.160737596 | J33: 0.1762179129 | K33: 0.1925481168 | L33: 0.2080349357 | M33: 0.2184965554 | N33: 0.2145650678 | O33: 0.1779807155 | P33: 0 | Q33: 0 | R33: 0 | S33: 0 | T33: 0

Sheet Depreciation
E2: 1997 | F2: =E2+1 -> 1998 | G2: =F2+1 -> 1999 | H2: =G2+1 -> 2000 | I2: 2001 | J2: 2002 | K2: 2003 | L2: 2004 | M2: 2005 | N2: 2006 | O2: 2007 | P2: 2008 | Q2: 2009 | R2: 2010
D4: Plane Life | E4: 13
D5: Historic Growth | E5: 0.1
D6: Units | E6: 1
D8: Plant in Service | E8: 385702.752
D9: Accum Depreciation | E9: 113883.56
D10: Net | E10: 271819.192 | F10: =E10/E8 -> 0.7047374969
D12: Retirement | E12: 1
D13: Retirement Rate | F13: 0.03331171075 | G13: =F13*(1+$E$5) -> 0.03664288183 | H13: =G13*(1+$E$5) -> 0.04030717001 | I13: 0.04433788701 | J13: 0.04877167571 | K13: 0.05364884328 | L13: 0.05901372761 | M13: 0.06491510037 | N13: 0.07140661041 | O13: 0.07854727145 | P13: 0.08640199859 | Q13: 0.09504219845 | R13: 0.1045464183
D15: Plant In Service
D16: Opening Balance | F16: =E18 -> 385702.752 | G16: =F18 -> 372854.3335 | H16: 358721.0731 | I16: 343174.4867 | J16: 326073.2417 | K16: 307261.8722 | L16: 286569.3657 | M16: 263807.6085 | N16: 238769.6757 | O16: 211227.9495 | P16: 180932.0507 | Q16: 147606.5621 | R16: 110948.5246
D17: Less: Retirements | F17: =$E$8*F13 -> 12848.41851 | G17: =$E$8*G13 -> 14133.26036 | H17: 15546.5864 | I17: 17101.24504 | J17: 18811.36954 | K17: 20692.5065 | L17: 22761.75714 | M17: 25037.93286 | N17: 27541.72615 | O17: 30295.89876 | P17: 33325.48864 | Q17: 36658.0375 | R17: 40323.84125
D18: Closing Balance | E18: =E8 -> 385702.752 | F18: =F16-F17 -> 372854.3335 | G18: =G16-G17 -> 358721.0731 | H18: 343174.4867 | I18: 326073.2417 | J18: 307261.8722 | K18: 286569.3657 | L18: 263807.6085 | M18: 238769.6757 | N18: 211227.9495 | O18: 180932.0507 | P18: 147606.5621 | Q18: 110948.5246 | R18: 70624.68336
D19: Depreciation | E19: =1/$E$4 -> 0.07692307692 | F19: =$E$19*F16 -> 29669.44246 | G19: =$E$19*G16 -> 28681.10258 | H19: 27593.9287 | I19: 26398.03744 | J19: 25082.55705 | K19: 23635.52863 | L19: 22043.79736 | M19: 20292.89296 | N19: 18366.89813 | O19: 16248.30381 | P19: 13917.85006 | Q19: 11354.35093 | R19: 8534.501893
D21: Accumulated Depreciation
D22: Opening Balance | F22: =E25 -> 113883.56 | G22: =F25 -> 130704.584 | H22: 145252.4262 | I22: 157299.7685 | J22: 166596.5609 | K22: 172867.7484 | L22: 175810.7705 | M22: 175092.8107 | N22: 170347.7708 | O22: 161172.9428 | P22: 147125.3479 | Q22: 127717.7093 | R22: 102414.0227
D23: Add: Depreciation | F23: =F19 -> 29669.44246 | G23: =G19 -> 28681.10258 | H23: 27593.9287 | I23: 26398.03744 | J23: 25082.55705 | K23: 23635.52863 | L23: 22043.79736 | M23: 20292.89296 | N23: 18366.89813 | O23: 16248.30381 | P23: 13917.85006 | Q23: 11354.35093 | R23: 8534.501893
D24: Less: Retirements | F24: =F17 -> 12848.41851 | G24: =G17 -> 14133.26036 | H24: 15546.5864 | I24: 17101.24504 | J24: 18811.36954 | K24: 20692.5065 | L24: 22761.75714 | M24: 25037.93286 | N24: 27541.72615 | O24: 30295.89876 | P24: 33325.48864 | Q24: 36658.0375 | R24: 40323.84125
D25: Closing Balance | E25: =E9 -> 113883.56 | F25: =F22+F23-F24 -> 130704.584 | G25: =G22+G23-G24 -> 145252.4262 | H25: 157299.7685 | I25: 166596.5609 | J25: 172867.7484 | K25: 175810.7705 | L25: 175092.8107 | M25: 170347.7708 | N25: 161172.9428 | O25: 147125.3479 | P25: 127717.7093 | Q25: 102414.0227 | R25: 70624.68336
D27: Net Plant | F27: =F18-F25 -> 242149.7495 | G27: =G18-G25 -> 213468.647 | H27: 185874.7183 | I27: 159476.6808 | J27: 134394.1238 | K27: 110758.5951 | L27: 88714.79778 | M27: 68421.90482 | N27: 50055.00669 | O27: 33806.70288 | P27: 19888.85283 | Q27: 8534.501893 | R27: 0

Sheet Straight Line Depreciation
A2: Historic Data
C3: Life | D3: 10 | E3: Find from financial report
C4: Base Retirements | D4: 0.008792141266 | E4: set these two variables
C5: Historic Growth | D5: 0.4271047734
C7: Plant in Service | D7: 112364.323 | E7: given from financial report
C8: Accum Depreciation | D8: 23007.382
C10: Closing Plant | D10: =LOOKUP(D3,13:13,19:19) -> 0.007570223024 | E10: target these tow variables to be zero
C11: Closing Acc Depreciation | D11: =LOOKUP(D3,13:13,28:28) -> 0.009355892631
D13: 0 | E13: 1 | F13: 2 | G13: 3 | H13: 4 | I13: 5 | J13: 6 | K13: 7 | L13: 8 | M13: 9 | N13: 10 | O13: 11 | P13: 12 | Q13: 13 | R13: 14 | S13: 15
E14: =E13<=$D$3 -> TRUE | F14: =F13<=$D$3 -> TRUE | G14: TRUE | H14: TRUE | I14: TRUE | J14: TRUE | K14: TRUE | L14: TRUE | M14: TRUE | N14: TRUE | O14: FALSE | P14: FALSE | Q14: FALSE | R14: FALSE | S14: FALSE
A16: Gross Plant and Depreciation
B17: Opening Balance | E17: =D19 -> 112364.323 | F17: 110954.4534 | G17: 108942.4217 | H17: 106071.0417 | I17: 101973.2816 | J17: 96125.34852 | K17: 87779.73537 | L17: 75869.67101 | M17: 58872.76132 | N17: 34616.39035 | O17: 0.007570223024 | P17: 0.007570223024 | Q17: 0.007570223024 | R17: 0.007570223024 | S17: 0.007570223024
B18: Less: Retirements | D18: =D7*D4 -> 987.9230011 | E18: =D18*(1+$D$5)*E14 -> 1409.869631 | F18: =E18*(1+$D$5)*F14 -> 2012.03168 | G18: 2871.380014 | H18: 4097.760124 | I18: 5847.933034 | J18: 8345.613147 | K18: 11910.06436 | L18: 16996.9097 | M18: 24256.37096 | N18: 34616.38278 | O18: 0 | P18: 0 | Q18: 0 | R18: 0 | S18: 0
B19: Closing Balance | D19: =D7 -> 112364.323 | E19: =E17-E18 -> 110954.4534 | F19: 108942.4217 | G19: 106071.0417 | H19: 101973.2816 | I19: 96125.34852 | J19: 87779.73537 | K19: 75869.67101 | L19: 58872.76132 | M19: 34616.39035 | N19: 0.007570223024 | O19: 0.007570223024 | P19: 0.007570223024 | Q19: 0.007570223024 | R19: 0.007570223024 | S19: 0.007570223024
B21: Straight Line Rate | D21: =1/$D$3 -> 0.1 | E21: 0.1 | F21: 0.1 | G21: 0.1 | H21: 0.1 | I21: 0.1 | J21: 0.1 | K21: 0.1 | L21: 0.1 | M21: 0.1 | N21: 0.1 | O21: 0.1 | P21: 0.1 | Q21: 0.1 | R21: 0.1 | S21: 0.1
B22: Straight Line Depreciation | E22: =E21*E17 -> 11236.4323 | F22: 11095.44534 | G22: 10894.24217 | H22: 10607.10417 | I22: 10197.32816 | J22: 9612.534852 | K22: 8777.973537 | L22: 7586.967101 | M22: 5887.276132 | N22: 3461.639035 | O22: 0.0007570223024 | P22: 0.0007570223024 | Q22: 0.0007570223024 | R22: 0.0007570223024 | S22: 0.0007570223024
A24: Accumulated Depreciation
B25: Opening Balance | E25: =D28 -> 23007.382 | F25: =E28 -> 32833.94467 | G25: 41917.35833 | H25: 49940.22048 | I25: 56449.56452 | J25: 60798.95965 | K25: 62065.88135 | L25: 58933.79053 | M25: 49523.84793 | N25: 31154.7531 | O25: 0.009355892631 | P25: 0.01011291493 | Q25: 0.01086993724 | R25: 0.01162695954 | S25: 0.01238398184
B26: Add: Depreciation Expense | E26: =E22 -> 11236.4323 | F26: =F22 -> 11095.44534 | G26: 10894.24217 | H26: 10607.10417 | I26: 10197.32816 | J26: 9612.534852 | K26: 8777.973537 | L26: 7586.967101 | M26: 5887.276132 | N26: 3461.639035 | O26: 0.0007570223024 | P26: 0.0007570223024 | Q26: 0.0007570223024 | R26: 0.0007570223024 | S26: 0.0007570223024
B27: Less: Retirements | E27: =E18 -> 1409.869631 | F27: =F18 -> 2012.03168 | G27: 2871.380014 | H27: 4097.760124 | I27: 5847.933034 | J27: 8345.613147 | K27: 11910.06436 | L27: 16996.9097 | M27: 24256.37096 | N27: 34616.38278 | O27: 0 | P27: 0 | Q27: 0 | R27: 0 | S27: 0
B28: Closing Balance | D28: =D8 -> 23007.382 | E28: =E25+E26-E27 -> 32833.94467 | F28: =F25+F26-F27 -> 41917.35833 | G28: 49940.22048 | H28: 56449.56452 | I28: 60798.95965 | J28: 62065.88135 | K28: 58933.79053 | L28: 49523.84793 | M28: 31154.7531 | N28: 0.009355892631 | O28: 0.01011291493 | P28: 0.01086993724 | Q28: 0.01162695954 | R28: 0.01238398184 | S28: 0.01314100414
